[Event "Live Chess"]
[Site "Chess.com"]
[Date "2024.06.01"]
[Round "-"]
[White "vincents82"]
[Black "ACM42"]
[Result "1/2-1/2"]
[WhiteElo "2050"]
[BlackElo "2153"]
[TimeControl "300"]
[EndTime "15:33:29 PDT"]
[Termination "Game drawn - insufficient material"]

1. e4 {[%clk 0:04:56.1]} 1... e6 {[%clk 0:04:58.7]} 2. d4 {[%clk 0:04:54.1]}
2... d5 {[%clk 0:04:58.1]} 3. Nd2 {[%clk 0:04:52.7]} 3... Nf6 {[%clk 0:04:56.6]}
4. e5 {[%clk 0:04:48.2]} 4... Nfd7 {[%clk 0:04:56]} 5. Bd3 {[%clk 0:04:46.4]}
5... c5 {[%clk 0:04:55.9]} 6. c3 {[%clk 0:04:45.5]} 6... Nc6 {[%clk 0:04:55.4]}
7. Ne2 {[%clk 0:04:44.4]} 7... f6 {[%clk 0:04:53.6]} 8. exf6 {[%clk 0:04:42.5]}
8... Nxf6 {[%clk 0:04:53.5]} 9. Nf3 {[%clk 0:04:41.6]} 9... Bd6 {[%clk
0:04:52.8]} 10. O-O {[%clk 0:04:40.4]} 10... O-O {[%clk 0:04:52.2]} 11. Bf4
{[%clk 0:04:39.4]} 11... cxd4 {[%clk 0:04:50.9]} 12. cxd4 {[%clk 0:04:38.1]}
12... Bxf4 {[%clk 0:04:50.3]} 13. Nxf4 {[%clk 0:04:37.1]} 13... Ne4 {[%clk
0:04:49.7]} 14. g3 {[%clk 0:04:36]} 14... Qb6 {[%clk 0:04:42.2]} 15. Bxe4 {[%clk
0:04:17.1]} 15... dxe4 {[%clk 0:04:40.1]} 16. Ne5 {[%clk 0:04:15.8]} 16... Nxd4
{[%clk 0:04:33.3]} 17. Ne2 {[%clk 0:03:36.8]} 17... Nf3+ {[%clk 0:04:19.9]} 18.
Nxf3 {[%clk 0:03:17.9]} 18... exf3 {[%clk 0:04:19.8]} 19. Nc3 {[%clk 0:03:15.3]}
19... e5 {[%clk 0:04:15.8]} 20. Nd5 {[%clk 0:03:10.1]} 20... Qh6 {[%clk
0:04:12.2]} 21. Ne3 {[%clk 0:03:07.4]} 21... Be6 {[%clk 0:04:00.1]} 22. Rc1
{[%clk 0:02:58.6]} 22... Rad8 {[%clk 0:03:48.4]} 23. Qa4 {[%clk 0:02:47.8]}
23... Qh3 {[%clk 0:03:33.1]} 24. Qh4 {[%clk 0:02:42.7]} 24... Rd2 {[%clk
0:03:26.3]} 25. Qxh3 {[%clk 0:02:39.8]} 25... Bxh3 {[%clk 0:03:25.1]} 26. Rfd1
{[%clk 0:02:37.2]} 26... Rxb2 {[%clk 0:03:23.9]} 27. Rc7 {[%clk 0:02:32.3]}
27... a5 {[%clk 0:03:17.7]} 28. Re7 {[%clk 0:02:24.6]} 28... Rb5 {[%clk
0:03:03.3]} 29. Rc1 {[%clk 0:02:17.8]} 29... Rc8 {[%clk 0:02:57.7]} 30. Rxc8+
{[%clk 0:02:12.2]} 30... Bxc8 {[%clk 0:02:56.9]} 31. Re8+ {[%clk 0:02:11.5]}
31... Kf7 {[%clk 0:02:56.2]} 32. Rxc8 {[%clk 0:02:10.7]} 32... Rb1+ {[%clk
0:02:55.3]} 33. Nf1 {[%clk 0:02:09.8]} 33... Ke6 {[%clk 0:02:48.9]} 34. Rc7
{[%clk 0:02:07.2]} 34... b5 {[%clk 0:02:45.9]} 35. Rxg7 {[%clk 0:02:05.2]} 35...
a4 {[%clk 0:02:40.4]} 36. Rxh7 {[%clk 0:02:03.7]} 36... b4 {[%clk 0:02:39.1]}
37. Rb7 {[%clk 0:01:59.2]} 37... Kd5 {[%clk 0:02:22.1]} 38. h4 {[%clk 0:01:58]}
38... Ke4 {[%clk 0:02:21.4]} 39. h5 {[%clk 0:01:48.3]} 39... b3 {[%clk
0:02:19.2]} 40. axb3 {[%clk 0:01:46.7]} 40... a3 {[%clk 0:01:48]} 41. Ra7 {[%clk
0:01:44.9]} 41... Kf5 {[%clk 0:01:39.7]} 42. h6 {[%clk 0:01:42.6]} 42... Rxb3
{[%clk 0:01:35.9]} 43. h7 {[%clk 0:01:36.9]} 43... Rb8 {[%clk 0:01:35.2]} 44.
Rxa3 {[%clk 0:01:29.7]} 44... e4 {[%clk 0:01:32.5]} 45. Ne3+ {[%clk 0:01:05.9]}
45... Kg5 {[%clk 0:01:30.9]} 46. Ra7 {[%clk 0:00:56.8]} 46... Kg6 {[%clk
0:01:28.5]} 47. Re7 {[%clk 0:00:52.3]} 47... Kf6 {[%clk 0:01:25.1]} 48. Rxe4
{[%clk 0:00:49.6]} 48... Rh8 {[%clk 0:01:23.7]} 49. Rf4+ {[%clk 0:00:48.7]}
49... Kg5 {[%clk 0:01:21.8]} 50. Rxf3 {[%clk 0:00:48.1]} 50... Rxh7 {[%clk
0:01:21.2]} 51. Rf5+ {[%clk 0:00:46.2]} 51... Kg6 {[%clk 0:01:19.3]} 52. Kg2
{[%clk 0:00:45.7]} 52... Rb7 {[%clk 0:01:18.2]} 53. Rd5 {[%clk 0:00:43.8]} 53...
Rb4 {[%clk 0:01:14.4]} 54. Rd2 {[%clk 0:00:41.7]} 54... Kg5 {[%clk 0:01:12.7]}
55. f4+ {[%clk 0:00:40.5]} 55... Kh5 {[%clk 0:01:11.4]} 56. Kf3 {[%clk 0:00:40]}
56... Rb6 {[%clk 0:01:04.4]} 57. g4+ {[%clk 0:00:39.5]} 57... Kg6 {[%clk
0:01:02.9]} 58. g5 {[%clk 0:00:37.1]} 58... Kg7 {[%clk 0:01:01.8]} 59. Kg4
{[%clk 0:00:35.7]} 59... Rb1 {[%clk 0:01:00.6]} 60. f5 {[%clk 0:00:33.9]} 60...
Rg1+ {[%clk 0:00:56.9]} 61. Rg2 {[%clk 0:00:31.8]} 61... Re1 {[%clk 0:00:55.4]}
62. f6+ {[%clk 0:00:30.8]} 62... Kg6 {[%clk 0:00:54.4]} 63. Kf4 {[%clk
0:00:29.9]} 63... Ra1 {[%clk 0:00:51.5]} 64. Rh2 {[%clk 0:00:28.8]} 64... Ra4+
{[%clk 0:00:50.6]} 65. Kf3 {[%clk 0:00:27.7]} 65... Kxg5 {[%clk 0:00:48.3]} 66.
f7 {[%clk 0:00:26.8]} 66... Rf4+ {[%clk 0:00:47.3]} 67. Kg3 {[%clk 0:00:24.1]}
67... Rxf7 {[%clk 0:00:46.3]} 68. Rf2 {[%clk 0:00:22.5]} 68... Rxf2 {[%clk
0:00:44.6]} 69. Kxf2 {[%clk 0:00:21.5]} 1/2-1/2

[Event "Live Chess"]
[Site "Chess.com"]
[Date "2024.06.01"]
[Round "-"]
[White "Queensandpawns"]
[Black "MellowAesthetic"]
[Result "1-0"]
[WhiteElo "2351"]
[BlackElo "2080"]
[TimeControl "300"]
[EndTime "15:33:32 PDT"]
[Termination "Queensandpawns won on time"]

1. d4 {[%clk 0:04:58.5]} 1... Nf6 {[%clk 0:04:58.1]} 2. Nc3 {[%clk 0:04:58.4]}
2... d5 {[%clk 0:04:56.4]} 3. Bf4 {[%clk 0:04:57.9]} 3... c5 {[%clk 0:04:53.3]}
4. e3 {[%clk 0:04:56.9]} 4... a6 {[%clk 0:04:52.1]} 5. Nf3 {[%clk 0:04:55.9]}
5... Nc6 {[%clk 0:04:51.1]} 6. Ne5 {[%clk 0:04:54.2]} 6... cxd4 {[%clk
0:04:39.7]} 7. exd4 {[%clk 0:04:52.8]} 7... Qb6 {[%clk 0:04:29.7]} 8. Nxc6
{[%clk 0:04:49.9]} 8... bxc6 {[%clk 0:04:28.3]} 9. a3 {[%clk 0:04:49.3]} 9...
Bg4 {[%clk 0:03:39]} 10. f3 {[%clk 0:04:45.1]} 10... Bh5 {[%clk 0:03:38.3]} 11.
Na4 {[%clk 0:04:43.9]} 11... Qa5+ {[%clk 0:03:34.2]} 12. c3 {[%clk 0:04:42.8]}
12... e6 {[%clk 0:03:31.2]} 13. b4 {[%clk 0:04:41.5]} 13... Qd8 {[%clk
0:03:30.4]} 14. Bd3 {[%clk 0:04:40.6]} 14... Bd6 {[%clk 0:03:19.5]} 15. Qd2
{[%clk 0:04:38.1]} 15... O-O {[%clk 0:03:16.7]} 16. O-O {[%clk 0:04:23.5]} 16...
Bg6 {[%clk 0:03:12.5]} 17. Bxg6 {[%clk 0:04:21.4]} 17... hxg6 {[%clk 0:03:11]}
18. Bxd6 {[%clk 0:04:21.3]} 18... Qxd6 {[%clk 0:03:09.9]} 19. Nc5 {[%clk
0:04:21.2]} 19... Nd7 {[%clk 0:03:05.6]} 20. Nd3 {[%clk 0:04:18.7]} 20... Rfe8
{[%clk 0:02:54.8]} 21. Rfe1 {[%clk 0:04:16.1]} 21... e5 {[%clk 0:02:19.2]} 22.
dxe5 {[%clk 0:04:14.5]} 22... Nxe5 {[%clk 0:02:19.1]} 23. Qf4 {[%clk 0:04:11.5]}
23... f6 {[%clk 0:02:14.6]} 24. Nxe5 {[%clk 0:04:09.1]} 24... Rxe5 {[%clk
0:02:03.4]} 25. Rxe5 {[%clk 0:04:05.5]} 25... Qxe5 {[%clk 0:01:50.9]} 26. Qxe5
{[%clk 0:04:04.4]} 26... fxe5 {[%clk 0:01:50.8]} 27. Re1 {[%clk 0:04:03.5]}
27... Re8 {[%clk 0:01:50.1]} 28. Kf2 {[%clk 0:04:03.4]} 28... Kf7 {[%clk
0:01:49]} 29. f4 {[%clk 0:04:02.1]} 29... e4 {[%clk 0:00:53.9]} 30. Ke3 {[%clk
0:04:00.2]} 30... a5 {[%clk 0:00:53.3]} 31. Kd4 {[%clk 0:03:59]} 31... axb4
{[%clk 0:00:52.7]} 32. axb4 {[%clk 0:03:58.9]} 32... Ra8 {[%clk 0:00:49.7]} 33.
Kc5 {[%clk 0:03:57.2]} 33... Ra3 {[%clk 0:00:43.7]} 34. Kxc6 {[%clk 0:03:55.8]}
34... Rxc3+ {[%clk 0:00:42.9]} 35. Kxd5 {[%clk 0:03:55.7]} 35... e3 {[%clk
0:00:42.4]} 36. Ke4 {[%clk 0:03:54.1]} 36... Rc4+ {[%clk 0:00:32.3]} 37. Kf3
{[%clk 0:03:52.5]} 37... Rxb4 {[%clk 0:00:32.2]} 38. Rxe3 {[%clk 0:03:51.9]}
38... Kf6 {[%clk 0:00:31]} 39. Ra3 {[%clk 0:03:50.8]} 39... Rb6 {[%clk
0:00:24.6]} 40. g4 {[%clk 0:03:49.7]} 40... g5 {[%clk 0:00:19.3]} 41. f5 {[%clk
0:03:48]} 41... Rc6 {[%clk 0:00:18.7]} 42. Re3 {[%clk 0:03:45.8]} 42... Rb6
{[%clk 0:00:14.9]} 43. Rd3 {[%clk 0:03:41.8]} 43... g6 {[%clk 0:00:12.9]} 44.
Kg3 {[%clk 0:03:41.7]} 44... gxf5 {[%clk 0:00:12.1]} 45. gxf5 {[%clk 0:03:40.1]}
45... Kxf5 {[%clk 0:00:12]} 46. Rd5+ {[%clk 0:03:39.4]} 46... Kg6 {[%clk
0:00:11.7]} 47. Kg4 {[%clk 0:03:38.5]} 47... Rb4+ {[%clk 0:00:11.1]} 48. Kh3
{[%clk 0:03:38.1]} 48... Kh5 {[%clk 0:00:10.4]} 49. Rd8 {[%clk 0:03:36.8]} 49...
Rb3+ {[%clk 0:00:09.8]} 50. Kg2 {[%clk 0:03:36.5]} 50... Kh4 {[%clk 0:00:09.2]}
51. Rh8+ {[%clk 0:03:35.1]} 51... Kg4 {[%clk 0:00:08.6]} 52. Ra8 {[%clk
0:03:35]} 52... Rb2+ {[%clk 0:00:07.6]} 53. Kf1 {[%clk 0:03:34]} 53... Kh3
{[%clk 0:00:06.9]} 54. Rh8+ {[%clk 0:03:32.6]} 54... Kg4 {[%clk 0:00:06.6]} 55.
Ke1 {[%clk 0:03:31.8]} 55... Kf3 {[%clk 0:00:05.4]} 56. Rg8 {[%clk 0:03:31.2]}
56... g4 {[%clk 0:00:04.4]} 57. Kd1 {[%clk 0:03:27]} 57... Rxh2 {[%clk
0:00:03.4]} 58. Rf8+ {[%clk 0:03:25.7]} 58... Kg2 {[%clk 0:00:03]} 59. Kd2
{[%clk 0:03:24.9]} 59... g3 {[%clk 0:00:02.9]} 60. Kd3 {[%clk 0:03:24.8]} 60...
Rh1 {[%clk 0:00:02.6]} 61. Rg8 {[%clk 0:03:24.4]} 61... Rf1 {[%clk 0:00:02.5]}
62. Rh8 {[%clk 0:03:23.4]} 62... Rf2 {[%clk 0:00:01.9]} 63. Ke3 {[%clk
0:03:22.8]} 63... Kg1 {[%clk 0:00:01.1]} 64. Rh7 {[%clk 0:03:22.3]} 64... g2
{[%clk 0:00:00.6]} 65. Rh8 {[%clk 0:03:21.9]} 65... Rf1 {[%clk 0:00:00.5]} 66.
Ke2 {[%clk 0:03:19.9]} 66... Re1+ {[%clk 0:00:00.4]} 67. Kd2 {[%clk 0:03:17.7]}
1-0

[Event "Live Chess"]
[Site "Chess.com"]
[Date "2024.06.01"]
[Round "-"]
[White "Duke_of_Bebington"]
[Black "MagnersCarlsberg2870"]
[Result "0-1"]
[WhiteElo "1627"]
[BlackElo "1762"]
[TimeControl "300"]
[EndTime "15:33:38 PDT"]
[Termination "MagnersCarlsberg2870 won by checkmate"]

1. e4 {[%clk 0:04:58]} 1... d5 {[%clk 0:04:55.8]} 2. exd5 {[%clk 0:04:56.8]}
2... Nf6 {[%clk 0:04:54.6]} 3. Nf3 {[%clk 0:04:54.5]} 3... Qxd5 {[%clk
0:04:52.5]} 4. d4 {[%clk 0:04:53.2]} 4... Bg4 {[%clk 0:04:50.2]} 5. Be2 {[%clk
0:04:52.7]} 5... Qh5 {[%clk 0:04:47.9]} 6. O-O {[%clk 0:04:47.2]} 6... e6 {[%clk
0:04:46.9]} 7. Be3 {[%clk 0:04:39.8]} 7... Bd6 {[%clk 0:04:45.8]} 8. h3 {[%clk
0:04:37.3]} 8... Bxh3 {[%clk 0:04:43.1]} 9. gxh3 {[%clk 0:04:34.8]} 9... Qxh3
{[%clk 0:04:42.1]} 10. Bg5 {[%clk 0:04:31.3]} 10... Ng4 {[%clk 0:04:37.9]} 11.
Nh4 {[%clk 0:04:24.7]} 11... Qh2# {[%clk 0:04:35.8]} 0-1

[Event "Live Chess"]
[Site "Chess.com"]
[Date "2024.06.01"]
[Round "-"]
[White "agamilewska"]
[Black "TigerTank70"]
[Result "0-1"]
[WhiteElo "1771"]
[BlackElo "2230"]
[TimeControl "300"]
[EndTime "15:33:39 PDT"]
[Termination "TigerTank70 won by resignation"]

1. d4 {[%clk 0:04:43.2]} 1... d5 {[%clk 0:04:58.3]} 2. Nf3 {[%clk 0:04:42.6]}
2... Nf6 {[%clk 0:04:55.6]} 3. Bg5 {[%clk 0:04:41.4]} 3... e6 {[%clk 0:04:54.7]}
4. e3 {[%clk 0:04:40.6]} 4... Be7 {[%clk 0:04:54.4]} 5. c4 {[%clk 0:04:39.4]}
5... h6 {[%clk 0:04:54.1]} 6. Bxf6 {[%clk 0:04:38.2]} 6... Bxf6 {[%clk
0:04:53.1]} 7. cxd5 {[%clk 0:04:37.6]} 7... exd5 {[%clk 0:04:50.8]} 8. Nc3
{[%clk 0:04:37.1]} 8... c6 {[%clk 0:04:49.8]} 9. Be2 {[%clk 0:04:36.3]} 9... Nd7
{[%clk 0:04:48.1]} 10. O-O {[%clk 0:04:34.7]} 10... O-O {[%clk 0:04:47.3]} 11.
h3 {[%clk 0:04:33.9]} 11... Nb6 {[%clk 0:04:45.3]} 12. b3 {[%clk 0:04:32.4]}
12... Bf5 {[%clk 0:04:44.3]} 13. Rc1 {[%clk 0:04:31.1]} 13... Qe7 {[%clk
0:04:41.9]} 14. Re1 {[%clk 0:04:29.2]} 14... Nc8 {[%clk 0:04:34.9]} 15. Bd3
{[%clk 0:04:28.2]} 15... Be4 {[%clk 0:04:29.9]} 16. Bxe4 {[%clk 0:04:25.1]}
16... dxe4 {[%clk 0:04:29.6]} 17. Nd2 {[%clk 0:04:23]} 17... Nd6 {[%clk
0:04:29.3]} 18. Qg4 {[%clk 0:04:20.1]} 18... Rae8 {[%clk 0:04:23.8]} 19. d5
{[%clk 0:04:12.3]} 19... Bxc3 {[%clk 0:04:12.7]} 20. Rxc3 {[%clk 0:04:11]} 20...
Qe5 {[%clk 0:04:11]} 21. Rc5 {[%clk 0:03:57.2]} 21... b6 {[%clk 0:04:06.8]} 22.
Rxc6 {[%clk 0:03:55.1]} 22... Qxd5 {[%clk 0:04:05.2]} 23. Rc2 {[%clk 0:03:48.9]}
23... Qd3 {[%clk 0:04:04.1]} 24. Rec1 {[%clk 0:03:45.9]} 24... Re6 {[%clk
0:03:51.6]} 25. Nc4 {[%clk 0:03:44.2]} 25... Rg6 {[%clk 0:03:44]} 26. Qd1 {[%clk
0:03:28.9]} 26... Qxd1+ {[%clk 0:02:57.1]} 27. Rxd1 {[%clk 0:03:28.8]} 27... Rc8
{[%clk 0:02:40.8]} 28. Rdd2 {[%clk 0:02:45.6]} 28... Nxc4 {[%clk 0:02:22.4]} 29.
Rxc4 {[%clk 0:02:42.6]} 29... Rxc4 {[%clk 0:02:20]} 30. bxc4 {[%clk 0:02:42.5]}
30... Rc6 {[%clk 0:02:18.6]} 31. Rd4 {[%clk 0:02:41.6]} 31... f5 {[%clk
0:02:17.7]} 32. f4 {[%clk 0:02:36.1]} 32... Kf7 {[%clk 0:02:14.5]} 33. g4 {[%clk
0:02:35.3]} 33... g6 {[%clk 0:02:12.8]} 34. Kf2 {[%clk 0:02:33.1]} 34... Ke6
{[%clk 0:02:11.4]} 35. gxf5+ {[%clk 0:02:29.8]} 35... gxf5 {[%clk 0:02:09.1]}
36. Kg3 {[%clk 0:02:27.4]} 36... Rc5 {[%clk 0:02:07.7]} 37. Kh4 {[%clk 0:02:21]}
37... Ra5 {[%clk 0:02:06.9]} 38. Kh5 {[%clk 0:02:09]} 38... Rxa2 {[%clk
0:02:05.4]} 39. h4 {[%clk 0:02:01.4]} 39... Re2 {[%clk 0:02:04.1]} 40. Kxh6
{[%clk 0:01:59.7]} 40... Rxe3 {[%clk 0:02:03.2]} 41. Rd5 {[%clk 0:01:56.7]}
41... a5 {[%clk 0:01:52.3]} 42. h5 {[%clk 0:01:53.2]} 42... a4 {[%clk
0:01:49.7]} 43. Rb5 {[%clk 0:01:50.1]} 43... Rb3 {[%clk 0:01:43.9]} 44. Re5+
{[%clk 0:01:47.3]} 44... Kf6 {[%clk 0:01:42.5]} 45. Re8 {[%clk 0:01:30.9]} 45...
a3 {[%clk 0:01:36.4]} 46. Rf8+ {[%clk 0:01:28.9]} 46... Ke7 {[%clk 0:01:34.9]}
47. Ra8 {[%clk 0:01:26.5]} 47... e3 {[%clk 0:01:33.2]} 48. Kg7 {[%clk
0:01:25.4]} 48... e2 {[%clk 0:01:32.2]} 49. Ra7+ {[%clk 0:01:21.4]} 49... Kd6
{[%clk 0:01:31]} 50. c5+ {[%clk 0:01:10.3]} 50... bxc5 {[%clk 0:01:21.5]} 51.
Ra6+ {[%clk 0:01:06.7]} 51... Kd5 {[%clk 0:01:16.4]} 52. h6 {[%clk 0:01:00.6]}
52... e1=Q {[%clk 0:01:14.3]} 53. h7 {[%clk 0:00:59.7]} 53... Rg3+ {[%clk
0:01:08.3]} 54. Rg6 {[%clk 0:00:58.3]} 54... Qe7+ {[%clk 0:01:05.2]} 0-1

[Event "Live Chess"]
[Site "Chess.com"]
[Date "2024.06.01"]
[Round "-"]
[White "nigelst"]
[Black "Zhevzh1k7"]
[Result "1-0"]
[WhiteElo "1701"]
[BlackElo "1097"]
[TimeControl "300"]
[EndTime "15:34:05 PDT"]
[Termination "nigelst won by checkmate"]

1. e4 {[%clk 0:04:57.3]} 1... c6 {[%clk 0:04:56.4]} 2. d4 {[%clk 0:04:54.9]}
2... d5 {[%clk 0:04:55.2]} 3. exd5 {[%clk 0:04:52.4]} 3... cxd5 {[%clk 0:04:53]}
4. Bd3 {[%clk 0:04:49.9]} 4... Nc6 {[%clk 0:04:51.8]} 5. c3 {[%clk 0:04:48.9]}
5... Nf6 {[%clk 0:04:47.9]} 6. Bf4 {[%clk 0:04:46.3]} 6... Bd7 {[%clk
0:04:40.8]} 7. Nf3 {[%clk 0:04:44.5]} 7... e6 {[%clk 0:04:39.1]} 8. O-O {[%clk
0:04:41.8]} 8... Be7 {[%clk 0:04:37.2]} 9. Nbd2 {[%clk 0:04:39.6]} 9... O-O
{[%clk 0:04:33]} 10. Ne5 {[%clk 0:04:37.8]} 10... Nxe5 {[%clk 0:04:30]} 11. Bxe5
{[%clk 0:04:34.1]} 11... Bc6 {[%clk 0:04:24.4]} 12. Nf3 {[%clk 0:04:32.5]} 12...
Bd6 {[%clk 0:04:13.2]} 13. Re1 {[%clk 0:04:29]} 13... Bxe5 {[%clk 0:04:11]} 14.
Nxe5 {[%clk 0:04:27.7]} 14... Qb6 {[%clk 0:04:04]} 15. Qe2 {[%clk 0:04:23.2]}
15... Nd7 {[%clk 0:04:01.9]} 16. Nxd7 {[%clk 0:04:20.3]} 16... Bxd7 {[%clk
0:04:00.9]} 17. Rac1 {[%clk 0:04:15.5]} 17... a6 {[%clk 0:03:54.7]} 18. Bb1
{[%clk 0:04:07.8]} 18... Bb5 {[%clk 0:03:52.7]} 19. Qc2 {[%clk 0:04:05.7]} 19...
Rac8 {[%clk 0:03:47.4]} 20. Qxh7# {[%clk 0:04:03.2]} 1-0

[Event "Live Chess"]
[Site "Chess.com"]
[Date "2024.06.01"]
[Round "-"]
[White "SavagePawn7"]
[Black "Berdgross"]
[Result "0-1"]
[WhiteElo "642"]
[BlackElo "592"]
[TimeControl "300"]
[EndTime "15:34:18 PDT"]
[Termination "Berdgross won on time"]

1. e4 {[%clk 0:04:54.2]} 1... d5 {[%clk 0:04:59.9]} 2. exd5 {[%clk 0:04:49.9]}
2... Qxd5 {[%clk 0:04:58.1]} 3. Nc3 {[%clk 0:04:44.3]} 3... Qd8 {[%clk 0:04:56]}
4. Nf3 {[%clk 0:04:42.4]} 4... Nc6 {[%clk 0:04:55.9]} 5. Bb5 {[%clk 0:04:40.5]}
5... Bd7 {[%clk 0:04:53.8]} 6. O-O {[%clk 0:04:38.1]} 6... a6 {[%clk 0:04:53.2]}
7. Ba4 {[%clk 0:04:35.9]} 7... b5 {[%clk 0:04:51.5]} 8. Bb3 {[%clk 0:04:33.9]}
8... e6 {[%clk 0:04:49]} 9. d4 {[%clk 0:04:27.6]} 9... Nf6 {[%clk 0:04:45.1]}
10. Bg5 {[%clk 0:04:18]} 10... Be7 {[%clk 0:04:43]} 11. Re1 {[%clk 0:04:03.8]}
11... h6 {[%clk 0:04:39.8]} 12. Bxf6 {[%clk 0:04:01.3]} 12... Bxf6 {[%clk
0:04:38.1]} 13. d5 {[%clk 0:03:53.8]} 13... e5 {[%clk 0:04:32.1]} 14. dxc6
{[%clk 0:03:51.3]} 14... Bxc6 {[%clk 0:04:29]} 15. Qxd8+ {[%clk 0:03:47]} 15...
Rxd8 {[%clk 0:04:25.1]} 16. Red1 {[%clk 0:03:44.4]} 16... Rxd1+ {[%clk
0:04:22.9]} 17. Rxd1 {[%clk 0:03:42.6]} 17... O-O {[%clk 0:04:20.5]} 18. Bd5
{[%clk 0:03:10.8]} 18... e4 {[%clk 0:04:06]} 19. Bxc6 {[%clk 0:03:09.1]} 19...
exf3 {[%clk 0:04:03.8]} 20. gxf3 {[%clk 0:03:06.7]} 20... Bxc3 {[%clk
0:04:01.9]} 21. bxc3 {[%clk 0:03:04.8]} 21... g5 {[%clk 0:03:46.6]} 22. Bb7
{[%clk 0:02:56.8]} 22... a5 {[%clk 0:03:40.1]} 23. Bc6 {[%clk 0:02:51.9]} 23...
b4 {[%clk 0:03:38.4]} 24. cxb4 {[%clk 0:02:49.2]} 24... axb4 {[%clk 0:03:37.2]}
25. Rb1 {[%clk 0:02:33.5]} 25... Rb8 {[%clk 0:03:34.2]} 26. Kf1 {[%clk
0:02:26.2]} 26... Rb6 {[%clk 0:03:28.8]} 27. Be4 {[%clk 0:02:17.7]} 27... Ra6
{[%clk 0:03:18.3]} 28. Bd5 {[%clk 0:02:09.5]} 28... c6 {[%clk 0:03:01.3]} 29.
Bc4 {[%clk 0:02:02.8]} 29... Ra4 {[%clk 0:02:53.6]} 30. Bb3 {[%clk 0:01:43.1]}
30... Ra3 {[%clk 0:02:37.6]} 31. Rd1 {[%clk 0:01:34.7]} 31... Kg7 {[%clk
0:02:34.8]} 32. Rd7 {[%clk 0:01:31.4]} 32... Kf6 {[%clk 0:02:28.5]} 33. Rb7
{[%clk 0:01:15.6]} 33... Ra6 {[%clk 0:02:17]} 34. Rxb4 {[%clk 0:01:12.4]} 34...
c5 {[%clk 0:02:09.6]} 35. Rc4 {[%clk 0:01:07.4]} 35... Rc6 {[%clk 0:02:07.4]}
36. a4 {[%clk 0:01:04.5]} 36... Ke5 {[%clk 0:02:02.6]} 37. Re4+ {[%clk 0:00:57]}
37... Kf5 {[%clk 0:01:56.1]} 38. Bxf7 {[%clk 0:00:47.5]} 38... Kf6 {[%clk
0:01:45.2]} 39. Bd5 {[%clk 0:00:39.3]} 39... Rd6 {[%clk 0:01:36.8]} 40. Bb3
{[%clk 0:00:32.2]} 40... Rd1+ {[%clk 0:01:34.6]} 41. Kg2 {[%clk 0:00:30.4]}
41... Rd6 {[%clk 0:01:22.2]} 42. a5 {[%clk 0:00:25]} 42... Ra6 {[%clk
0:01:17.2]} 43. Ra4 {[%clk 0:00:20.1]} 43... Ke5 {[%clk 0:01:13]} 44. Bc4 {[%clk
0:00:18.6]} 44... Ra7 {[%clk 0:01:10]} 45. a6 {[%clk 0:00:16.2]} 45... Kd6
{[%clk 0:01:07.8]} 46. Rb4 {[%clk 0:00:12.5]} 46... Kc6 {[%clk 0:01:01.2]} 47.
Rb2 {[%clk 0:00:07.9]} 47... h5 {[%clk 0:00:52.5]} 48. Kh3 {[%clk 0:00:03.9]}
48... g4+ {[%clk 0:00:47.8]} 49. Kh4 {[%clk 0:00:02.9]} 49... gxf3 {[%clk
0:00:46.1]} 50. Kxh5 {[%clk 0:00:01.8]} 50... Kd6 {[%clk 0:00:35]} 51. Kg4
{[%clk 0:00:01.7]} 51... Ke5 {[%clk 0:00:29.7]} 52. Kxf3 {[%clk 0:00:01.6]}
52... Kd6 {[%clk 0:00:27]} 53. h4 {[%clk 0:00:01.5]} 53... Ke5 {[%clk
0:00:23.9]} 54. h5 {[%clk 0:00:01.4]} 54... Kf6 {[%clk 0:00:22.6]} 55. h6 {[%clk
0:00:01.3]} 55... Kg6 {[%clk 0:00:20.1]} 56. Bd3+ {[%clk 0:00:00.8]} 56... Kxh6
{[%clk 0:00:16.4]} 0-1